[Event "Romanian Rapid Open 2022"]
[Site "Sebes"]
[Date "2022.12.02"]
[Round "7.32"]
[White "Borodi, Cosmin-Alin"]
[Black "Pop, Ioan I."]
[Result "1-0"]
[ECO "A35"]
[WhiteElo "1919"]
[BlackElo "1540"]
[Annotator "TA"]
[PlyCount "113"]
[EventDate "2022.12.02"]
[EventType "rapid"]
[EventCountry "ROU"]
[SourceTitle "playchess.com"]
[Source "ChessBase"]
[SourceQuality "1"]
[TimeControl "600+5"]

{[%evp 9,113,-25,-27,-31,9,-23,-10,-46,-27,-45,-48,-48,-44,-42,-50,-47,-43,-91,0,0,12,0,188,190,181,187,184,183,189,178,183,189,186,135,173,176,176,109,127,64,67,69,66,67,87,0,30,31,100,97,133,131,131,131,156,153,188,179,220,203,211,219,214,198,198,145,212,214,216,214,831,811,29964,29967,29961,6448,29969,29969,29970,29957,29973,29974,29975,29977,29977,29978,29978,29978,29978,0,0,0,0,0,0,0,0,0,0,0,0,0,0,0,0,0]} 1. c4 {[%emt 0:00:06]} Nf6 {[%emt 0:00:04]} 2. Nc3 {[%emt 0:00:04]} g6 {[%emt 0:00:01]} 3. Nf3 {[%emt 0:00:03]} c5 {[%emt 0:00:04]} 4. e3 {[%emt 0:00:04]} Nc6 {[%emt 0:00:06]} 5. a3 {[%emt 0:00:02]} Bg7 {[%emt 0:00:03]} 6. Be2 {[%emt 0:00:05][%cal Ob2b4] A35: Symmetrical English: 2 Nc3 Nc6 3 Nf3.} e5 {[%emt 0:00:06] Against b4} 7. Qc2 {[%emt 0:00:05][%cal Ob2b4]} O-O {[%emt 0:00:58]} 8. b3 {[%emt 0:00:03] [#]} b6 $146 {[%emt 0:00:10][%cal Oe5e4]} ({Predecessor:} 8... d6 9. Bb2 Bf5 10. d3 Re8 11. Nd2 a6 12. h3 Rb8 13. g4 Be6 14. g5 Nd7 {1-0 (41) Mauro Juarez,B (1728)-Rezola Gimenez,G (1468) Tres Cantos 2012}) 9. Bb2 {[%emt 0:00:04]} d5 {[%emt 0:00:32]} 10. cxd5 {[%emt 0:00:08]} Nxd5 {[%emt 0:00:03]} 11. Nxd5 {[%emt 0:00:33]} Qxd5 {[%emt 0:00:01]} 12. Bc4 {[%emt 0:00:03]} Qd6 {[%emt 0:00:08]} 13. h4 {[%emt 0:00:07]} (13. O-O $15) 13... Re8 {[%emt 0:00:43]} ({Black should play} 13... Bf5 $17 14. Qc3 Na5) 14. Ng5 $11 {[%emt 0:00:16]} Nd8 {[%emt 0:00:51]} 15. h5 {[%emt 0:00:28]} (15. Ne4 {simplifies} Qe7 16. h5 Nb7 17. d3) 15... h6 $2 {[%emt 0:00:10] [#]} (15... Bf5 $11 16. Ne4 (16. e4 Bg4 $11) 16... Qc6) 16. Nxf7 $1 $18 {[%emt 0:00:27][%mdl 512]} Nxf7 {[%emt 0:00:05]} 17. hxg6 {[%emt 0:00:03][%mdl 64] Pin} (17. Qxg6 $2 {perishes.} Be6 18. d3 Qd7 $19) 17... Be6 {[%emt 0:00:08] And now ...Bxc4 would win.} 18. gxf7+ {[%emt 0:00:08]} Bxf7 {[%emt 0:00:01]} 19. Bxf7+ {[%emt 0:00:23]} Kxf7 {[%emt 0:00:01]} 20. Qf5+ {[%emt 0:00:09]} Kg8 {[%emt 0:00:43]} 21. Rd1 {[%emt 0:00:47]} (21. Rh4 $18) 21... Rf8 {[%emt 0:00:03]} 22. Qg4 {[%emt 0:00:27]} Rf7 {[%emt 0:00:21]} 23. O-O {[%emt 0:00:31]} (23. Rh5 $18) 23... Raf8 {[%emt 0:00:43]} 24. d4 {[%emt 0:06:59]} (24. d3 $16) 24... exd4 $14 {[%emt 0:00:33]} 25. exd4 {[%emt 0:00:00]} Qf4 {[%emt 0:02:01]} 26. Qg6 {[%emt 0:00:00] Strongly threatening dxc5.} Qf5 {[%emt 0:00:23]} 27. Qg3 {[%emt 0:00:00]} (27. Qxf5 $16 Rxf5 28. Ba1) 27... Qf4 {[%emt 0:00:05]} (27... Qc2 $5 {[%cal Rc2b2]} 28. Bc1 Rxf2 29. Bxh6 Rxf1+ 30. Rxf1 Rxf1+ 31. Kxf1 Qd1+ 32. Kf2 Qxd4+ 33. Ke2 Qb2+ 34. Ke1 Qa1+ 35. Ke2 Qb2+ 36. Ke1 Qa1+ 37. Ke2 Qb2+ $11) 28. Qe3 {[%emt 0:00:00]} cxd4 {[%emt 0:00:23]} ({Black should try} 28... Rd7 $14) 29. Bxd4 $16 {[%emt 0:00:00]} Qxe3 {[%emt 0:00:10]} 30. Bxe3 {[%emt 0:00:00]} Rc8 {[%emt 0:00:20]} 31. Rd3 {[%emt 0:00:00]} Kh7 {[%emt 0:00:23]} 32. g3 {[%emt 0:00:00]} Bb2 {[%emt 0:00:11]} 33. a4 {[%emt 0:00:00]} Rg8 {[%emt 0:00:18]} 34. Rd6 {[%emt 0:00:00]} Rg6 {[%emt 0:00:11]} 35. Rfd1 {[%emt 0:00:00]} Be5 {[%emt 0:00:07]} 36. Rxg6 {[%emt 0:00:00]} Kxg6 $18 {[%emt 0:00:01][%mdl 4096] Endgame KRB-KRB} 37. Rd8 {[%emt 0:00:00]} (37. f4 $18 Bb2 38. Rd6+ Rf6 39. Rd7) 37... Rc7 {[%emt 0:00:21]} (37... h5 $16 38. Kg2 Bb2) 38. Rd5 {[%emt 0:00:00]} Bf6 {[%emt 0:00:13]} 39. Rd6 {[%emt 0:00:00] Black must now prevent Bd4.} Rf7 $2 {[%emt 0:00:22]} (39... Kf7 40. Bxh6 Rc3) 40. Bd4 {[%emt 0:00:00] Threatening mate with Rxf6+.} Kf5 {[%emt 0:00:15]} 41. Rxf6+ {[%emt 0:00:00]} Rxf6 {[%emt 0:00:01]} 42. Bxf6 {[%emt 0:00:00][%cal Og1g2] White wants to mate with Kg2!} Kxf6 {[%emt 0:00:02] KP-KP} 43. Kg2 {[%emt 0:00:00]} Ke5 {[%emt 0:00:00]} 44. f4+ {[%emt 0:00:00]} Kf5 {[%emt 0:00:06]} 45. Kf3 {[%emt 0:00:00]} h5 {[%emt 0:00:02]} 46. b4 {[%emt 0:00:00][%cal Bb3b4,Bb4b5][%mdl 32]} a6 {[%emt 0:00:08]} 47. b5 {[%emt 0:00:00]} a5 {[%emt 0:00:03]} 48. Kg2 {[%emt 0:00:16]} Kg4 {[%emt 0:00:13]} 49. Kh2 $2 {[%emt 0:00:01]} (49. Kf2 {mates} Kf5 50. Kf3 Kf6 51. Ke4 Kg7 52. Kd5 Kh6 53. Kc6 Kh7 54. Kxb6) 49... h4 $1 $11 {[%emt 0:00:13] The position is equal.} 50. gxh4 {[%emt 0:00:12]} Kxh4 {[%emt 0:00:01] K3P-KPP} 51. f5 {[%emt 0:00:24]} (51. Kg2 $5 Kg4 $8 52. f5 Kxf5 53. Kf3 $11) 51... Kg5 {[%emt 0:00:02] Prevents f6.} 52. Kg3 {[%emt 0:00:01]} Kxf5 {[%emt 0:00:01]} 53. Kf3 {[%emt 0:00:01]} Ke5 {[%emt 0:00:01]} 54. Ke3 {[%emt 0:00:01]} Kd5 {[%emt 0:00:00]} 55. Kd3 $1 {[%emt 0:00:00]} Kc5 {[%emt 0:00:01]} 56. Kc3 {[%emt 0:00:01]} Kd5 {[%emt 0:00:02] ( -> ...Kc5)} 57. Kd3 {[%emt 0:01:48][%mdl 32768] Black escapes into a draw.   Weighted Error Value: White=0.25 (precise) /Black=0.40. Sensor Board Error (Ke4/e5)?} 1-0

[Event "Romanian Rapid Open 2022"]
[Site "Sebes"]
[Date "2022.12.02"]
[Round "7.34"]
[White "Maresanu, Mina-Andrei"]
[Black "Patilea, Alin-Giani"]
[Result "1/2-1/2"]
[ECO "B56"]
[WhiteElo "1877"]
[BlackElo "1475"]
[Annotator "NA RC COMBH"]
[PlyCount "32"]
[EventDate "2022.12.02"]
[EventType "rapid"]
[EventCountry "ROU"]
[SourceTitle "playchess.com"]
[Source "ChessBase"]
[SourceQuality "1"]
[TimeControl "600+5"]

1. e4 {[%emt 0:00:03]} c5 {[%emt 0:00:09]} 2. Nf3 {[%emt 0:00:02]} Nc6 {[%emt 0:00:03]} 3. Nc3 {[%emt 0:00:02]} d6 {[%emt 0:00:15]} 4. d4 {[%emt 0:00:03]} cxd4 {[%emt 0:00:02]} 5. Nxd4 {[%emt 0:00:02]} e5 {[%emt 0:00:29]} 6. Nb3 {[%emt 0:00:05]} Nf6 {[%emt 0:00:13]} 7. Be3 {[%emt 0:00:10]} Be6 {[%emt 0:00:04]} 8. f3 {[%emt 0:00:03]} a6 {[%emt 0:00:10]} 9. Qd2 {[%emt 0:00:03]} Be7 {[%emt 0:00:06]} 10. g4 {[%emt 0:00:05]} Nxg4 {[%emt 0:00:35]} 11. fxg4 {[%emt 0:00:12]} Bh4+ {[%emt 0:00:09]} 12. Bf2 {[%emt 0:00:02]} Bxg4 {[%emt 0:00:19]} 13. Rg1 {[%emt 0:00:25]} Bg5 {[%emt 0:01:04]} 14. Be3 {[%emt 0:00:39]} Bh4+ {[%emt 0:00:12]} 15. Bf2 {[%emt 0:00:02]} Bg5 {[%emt 0:00:02]} 16. Be3 {[%emt 0:02:23]} Bh4+ {[%emt 0:07:33]} 1/2-1/2

[Event "Romanian Rapid Open 2022"]
[Site "Sebes"]
[Date "2022.12.02"]
[Round "7.35"]
[White "Radu, Robert-Daniel"]
[Black "Tamas, Christian-Arrydan"]
[Result "0-1"]
[ECO "B22"]
[WhiteElo "1510"]
[BlackElo "1917"]
[Annotator "TA"]
[PlyCount "62"]
[EventDate "2022.12.02"]
[EventType "rapid"]
[EventCountry "ROU"]
[SourceTitle "playchess.com"]
[Source "ChessBase"]
[SourceQuality "1"]
[TimeControl "600+5"]

{[%evp 9,62,28,18,-24,-13,-17,-14,-25,-13,-17,-7,-42,-20,-86,-82,-86,-83,-95,-75,-66,-68,-83,-81,-86,-73,-151,-156,-138,-147,-143,-145,-379,-375,-370,-339,-352,-360,-337,-6,-462,-304,-885,-884,-878,-878,-899,-910,-904,-899,-1437,-1007,-6008,-5127,-29990,-986]} 1. e4 {[%emt 0:00:01]} c5 {[%emt 0:00:01]} 2. Nf3 {[%emt 0:00:02]} Nc6 {[%emt 0:00:01]} 3. c3 {[%emt 0:00:01]} d5 {[%emt 0:00:03]} 4. exd5 {[%emt 0:00:02]} Qxd5 {[%emt 0:00:02]} 5. d4 {[%emt 0:00:05]} Bf5 {[%emt 0:00:02]} 6. Bd3 {[%emt 0:00:10] B22: Sicilian: 2 c3.} Nf6 {[%emt 0:00:21]} 7. O-O {[%emt 0:00:11]} Bxd3 {[%emt 0:00:01]} 8. Qxd3 {[%emt 0:00:03] The position is equal.} e6 {[%emt 0:00:02]} 9. Na3 {[%emt 0:01:15] [#]} cxd4 $146 {[%emt 0:00:03] next ...e5 is good for Black.} ({Predecessor:} 9... Be7 10. Bf4 O-O 11. Nc2 cxd4 12. c4 Qd7 13. Ne5 Nxe5 14. Bxe5 Rac8 15. Rfd1 Rfd8 {0-1 (28) Greeuw,S (1998)-Chittka,J (2333) Helsingor 2018}) 10. cxd4 {[%emt 0:00:06]} (10. Nb5 $5 {[%cal Rb5c7]} Rc8 11. Nbxd4 $11) 10... Bxa3 {[%emt 0:00:04]} 11. bxa3 {[%emt 0:00:03]} (11. Qxa3 $11 {remains equal.} Nxd4 12. Nxd4 (12. Qa4+ Nc6 $15) 12... Qxd4 13. Be3) 11... O-O {[%emt 0:00:04] Black is more active.} 12. Be3 {[%emt 0:00:12]} Rfd8 {[%emt 0:00:03]} 13. Rfd1 {[%emt 0:00:04]} Qe4 {[%emt 0:00:25]} 14. Qb5 {[%emt 0:00:24]} Ne7 {[%emt 0:00:26][%cal Bc6e7,Be7f5,Bf5e3][%mdl 32]} 15. Rab1 {[%emt 0:00:43]} b6 {[%emt 0:00:16]} 16. Rbc1 {[%emt 0:00:13]} Nf5 {[%emt 0:00:07]} 17. Ng5 {[%emt 0:02:19]} (17. Qa6 $142) 17... Qd5 $17 {[%emt 0:00:11]} 18. Qb3 {[%emt 0:00:47]} Nxe3 {[%emt 0:00:15]} 19. Qxe3 {[%emt 0:00:05]} Qxa2 $40 {[%emt 0:00:07][%mdl 128] Black attacks with force.} 20. Rc7 $2 {[%emt 0:00:17]} (20. h3 $17) 20... Nd5 $1 $19 {[%emt 0:00:28][%csl LRc7,LRe3]} 21. Qf3 {[%emt 0:00:06]} Nxc7 {[%emt 0:00:13]} 22. Qxf7+ {[%emt 0:00:05]} Kh8 {[%emt 0:00:01] [#] Threatens to win with ...Rf8.} 23. Qxc7 {[%emt 0:00:06] Nf7+ is the strong threat.} Rf8 {[%emt 0:00:19]} (23... Qxa3 $2 24. Qc2 (24. Nxe6 Rg8 $17) 24... Kg8 25. Qxh7+ Kf8 26. Qh8+ Ke7 27. Qxg7+ Kd6 28. Qb7 $18) ({Better is} 23... Qe2 $19 {[%cal Re2d1]} 24. Qc1 Rac8) 24. f3 $2 {[%emt 0:00:14][%mdl 8192]} (24. Nf7+ $1 $11 {and White is okay.} Kg8 25. Nh6+ Kh8 26. Nf7+ Kg8 27. Nh6+ Kh8 28. Nf7+) 24... Qe2 {[%emt 0:00:25]} (24... Qxa3 $2 {loses.} 25. Qe5 Qb3 26. Re1 $19) 25. Rf1 {[%emt 0:04:36]} (25. Qc1) 25... Qe3+ {[%emt 0:08:10]} 26. Kh1 {[%emt 0:00:00]} Qxg5 {[%emt 0:00:00]} 27. Re1 {[%emt 0:00:00]} Rac8 {[%emt 0:00:00]} 28. Qd6 {[%emt 0:00:00]} Qd5 {[%emt 0:00:00]} 29. Qb4 {[%emt 0:00:00]} h6 {[%emt 0:00:00][%cal Of8f3] [#] And now ...Rxf3! would win.} 30. h4 {[%emt 0:00:00]} Rf4 {[%emt 0:00:00]} 31. Kg1 {[%emt 0:00:00]} Qxd4+ {[%emt 0:00:00] Black took control after the opening.   Weighted Error Value: White=1.15/Black=0.49} (31... Rc2 $142 32. Re3 Qa2 33. Qe1 Rxg2+ 34. Kf1 Rh2 35. Qg3 Rfxh4 36. Rxe6 Rh1+ 37. Qg1 R4h2 38. Re8+ Kh7 39. Rh8+ Kxh8 40. f4 Qf2#) 0-1

[Event "Romanian Rapid Open 2022"]
[Site "Sebes"]
[Date "2022.12.02"]
[Round "7.36"]
[White "Dobre, Ana-Margareta-Alexan"]
[Black "Santimbrean, Mihnea-Nicolae"]
[Result "1-0"]
[ECO "C06"]
[WhiteElo "1857"]
[BlackElo "1491"]
[Annotator "NA RC COMBH"]
[PlyCount "115"]
[EventDate "2022.12.02"]
[EventType "rapid"]
[EventCountry "ROU"]
[SourceTitle "playchess.com"]
[Source "ChessBase"]
[SourceQuality "1"]
[TimeControl "600+5"]

1. e4 {[%emt 0:00:01]} e6 {[%emt 0:00:01]} 2. d4 {[%emt 0:00:13]} d5 {[%emt 0:00:03]} 3. Nd2 {[%emt 0:00:22]} Nf6 {[%emt 0:00:02]} 4. e5 {[%emt 0:00:06]} Nfd7 {[%emt 0:00:02]} 5. c3 {[%emt 0:00:01]} c5 {[%emt 0:00:02]} 6. Bd3 {[%emt 0:00:06]} Qb6 {[%emt 0:00:02]} 7. Ne2 {[%emt 0:00:05]} Nc6 {[%emt 0:00:02]} 8. Nf3 {[%emt 0:00:02]} cxd4 {[%emt 0:00:04]} 9. cxd4 {[%emt 0:00:01]} Bb4+ {[%emt 0:00:11]} 10. Bd2 {[%emt 0:00:16]} Bxd2+ {[%emt 0:00:52]} 11. Qxd2 {[%emt 0:00:02]} Qb4 {[%emt 0:00:09]} 12. O-O {[%emt 0:00:21]} Qxd2 {[%emt 0:00:37]} 13. Nxd2 {[%emt 0:00:02]} O-O {[%emt 0:00:09]} 14. a3 {[%emt 0:00:27]} f6 {[%emt 0:00:10]} 15. f4 {[%emt 0:00:48]} f5 {[%emt 0:01:50]} 16. b4 {[%emt 0:00:21]} Nb6 {[%emt 0:01:23]} 17. Rac1 {[%emt 0:00:23]} Bd7 {[%emt 0:00:25]} 18. Nb3 {[%emt 0:00:05]} a6 {[%emt 0:00:53]} 19. Nc5 {[%emt 0:00:07]} Rab8 {[%emt 0:00:40]} 20. Nxd7 {[%emt 0:01:23]} Nxd7 {[%emt 0:00:04]} 21. Bxa6 {[%emt 0:00:14]} Nxb4 {[%emt 0:01:00]} 22. Bb5 {[%emt 0:00:21]} Nc6 {[%emt 0:00:52]} 23. Bxc6 {[%emt 0:00:02]} bxc6 {[%emt 0:00:02]} 24. Rxc6 {[%emt 0:00:01]} Rb6 {[%emt 0:00:24]} 25. Rfc1 {[%emt 0:00:14]} Rxc6 {[%emt 0:01:49]} 26. Rxc6 {[%emt 0:00:01]} Kf7 {[%emt 0:00:02]} 27. Rc7 {[%emt 0:00:11]} Ke7 {[%emt 0:00:03]} 28. Nc3 {[%emt 0:00:08]} Ra8 {[%emt 0:00:18]} 29. a4 {[%emt 0:02:01]} Kd8 {[%emt 0:00:08]} 30. Rc6 {[%emt 0:00:01]} Ke7 {[%emt 0:00:02]} 31. Kf2 {[%emt 0:00:41]} Ra7 {[%emt 0:00:01]} 32. Ke3 {[%emt 0:00:26]} h6 {[%emt 0:00:11]} 33. h4 {[%emt 0:00:05]} Nb8 {[%emt 0:00:09]} 34. Rc8 {[%emt 0:00:20]} Nd7 {[%emt 0:00:03]} 35. Rc6 {[%emt 0:00:18]} Nb8 {[%emt 0:00:01]} 36. Rb6 {[%emt 0:00:43]} Nd7 {[%emt 0:00:05]} 37. Rb5 {[%emt 0:00:05]} Rc7 {[%emt 0:00:09]} 38. Kd3 {[%emt 0:00:04]} Rc6 {[%emt 0:00:04]} 39. a5 {[%emt 0:00:10]} Ra6 {[%emt 0:00:03]} 40. Na4 {[%emt 0:00:07]} Kd8 {[%emt 0:00:04]} 41. Nc5 {[%emt 0:00:20]} Nxc5+ {[%emt 0:00:09]} 42. Rxc5 {[%emt 0:00:04]} Kd7 {[%emt 0:00:02]} 43. Kc3 {[%emt 0:00:02]} Ra8 {[%emt 0:00:04]} 44. Kb4 {[%emt 0:00:01]} Rb8+ {[%emt 0:00:03]} 45. Rb5 {[%emt 0:00:01]} Rc8 {[%emt 0:00:12]} 46. Rc5 {[%emt 0:00:06]} Ra8 {[%emt 0:00:03]} 47. Kb5 {[%emt 0:00:10]} Rb8+ {[%emt 0:00:01]} 48. Ka6 {[%emt 0:00:22]} Rb4 {[%emt 0:00:12]} 49. Rb5 {[%emt 0:00:08]} Rxd4 {[%emt 0:00:03]} 50. Kb7 {[%emt 0:00:07]} Rc4 {[%emt 0:00:02]} 51. a6 {[%emt 0:00:02]} Rc7+ {[%emt 0:00:02]} 52. Kb6 {[%emt 0:00:00]} Rc6+ {[%emt 0:00:02]} 53. Ka5 {[%emt 0:00:03]} Rc7 {[%emt 0:00:05]} 54. Rb6 {[%emt 0:00:04]} Ra7 {[%emt 0:00:03]} 55. Rd6+ {[%emt 0:00:02]} Ke7 {[%emt 0:00:04]} 56. Kb6 {[%emt 0:00:01]} Ra8 {[%emt 0:00:06]} 57. Kb7 {[%emt 0:00:01]} Rf8 {[%emt 0:00:09]} 58. a7 {[%emt 0:00:02]} 1-0

[Event "Romanian Rapid Open 2022"]
[Site "Sebes"]
[Date "2022.12.02"]
[Round "7.37"]
[White "Roncea, Ioan-Aurel"]
[Black "Craciun, Ovidiu"]
[Result "0-1"]
[ECO "E90"]
[WhiteElo "1461"]
[BlackElo "1857"]
[Annotator "NA RC COMBH"]
[PlyCount "76"]
[EventDate "2022.12.02"]
[EventType "rapid"]
[EventCountry "ROU"]
[SourceTitle "playchess.com"]
[Source "ChessBase"]
[SourceQuality "1"]
[TimeControl "600+5"]

1. d4 {[%emt 0:00:05]} Nf6 {[%emt 0:00:02]} 2. Nf3 {[%emt 0:00:03]} g6 {[%emt 0:00:01]} 3. c4 {[%emt 0:00:04]} Bg7 {[%emt 0:00:02]} 4. Nc3 {[%emt 0:00:04]} O-O {[%emt 0:00:10]} 5. e4 {[%emt 0:00:12]} d6 {[%emt 0:00:02]} 6. h3 {[%emt 0:00:08]} e5 {[%emt 0:00:08]} 7. Bg5 {[%emt 0:10:04]} c6 {[%emt 0:00:58]} 8. Be2 {[%emt 0:00:00]} Nbd7 {[%emt 0:00:24]} 9. O-O {[%emt 0:00:00]} Re8 {[%emt 0:00:38]} 10. dxe5 {[%emt 0:00:00]} dxe5 {[%emt 0:00:11]} 11. Qd6 {[%emt 0:00:00]} Re6 {[%emt 0:00:15]} 12. Qd2 {[%emt 0:00:00]} Qc7 {[%emt 0:00:04]} 13. Rad1 {[%emt 0:00:00]} Ne8 {[%emt 0:01:47]} 14. Bh6 {[%emt 0:00:00]} Rd6 {[%emt 0:00:08]} 15. Qc1 {[%emt 0:00:00]} Bh8 {[%emt 0:00:49]} 16. Rxd6 {[%emt 0:00:00]} Nxd6 {[%emt 0:00:03]} 17. Rd1 {[%emt 0:00:00]} b6 {[%emt 0:01:59]} 18. Qd2 {[%emt 0:00:00]} Ne8 {[%emt 0:00:02]} 19. Ne1 {[%emt 0:00:00]} Rb8 {[%emt 0:00:47]} 20. f4 {[%emt 0:00:00]} exf4 {[%emt 0:00:16]} 21. Bxf4 {[%emt 0:00:00]} Be5 {[%emt 0:00:06]} 22. Bxe5 {[%emt 0:00:00]} Qxe5 {[%emt 0:00:16]} 23. Nf3 {[%emt 0:00:00]} Qe7 {[%emt 0:00:39]} 24. b3 {[%emt 0:00:00]} Ng7 {[%emt 0:00:47]} 25. Nd4 {[%emt 0:00:13]} Ne5 {[%emt 0:00:09]} 26. Nf3 {[%emt 0:00:25]} Nxf3+ {[%emt 0:00:21]} 27. Bxf3 {[%emt 0:00:02]} Qc5+ {[%emt 0:00:03]} 28. Kh1 {[%emt 0:00:08]} Be6 {[%emt 0:00:01]} 29. Qd6 {[%emt 0:00:32]} Qxd6 {[%emt 0:00:11]} 30. Rxd6 {[%emt 0:00:03]} c5 {[%emt 0:00:02]} 31. Bg4 {[%emt 0:00:22]} Bxg4 {[%emt 0:00:20]} 32. hxg4 {[%emt 0:00:01]} Ne6 {[%emt 0:00:02]} 33. Nb5 {[%emt 0:00:11]} a6 {[%emt 0:00:07]} 34. Nc3 {[%emt 0:00:09]} Kg7 {[%emt 0:00:24]} 35. Nd5 {[%emt 0:00:03]} b5 {[%emt 0:00:01]} 36. Rxa6 {[%emt 0:00:05]} bxc4 {[%emt 0:00:03]} 37. bxc4 {[%emt 0:00:02]} Rb2 {[%emt 0:00:08]} 38. a4 {[%emt 0:00:02]} Rc2 {[%emt 0:00:12]} 0-1

[Event "Romanian Rapid Open 2022"]
[Site "Sebes"]
[Date "2022.12.02"]
[Round "7.38"]
[White "Zaharie, Ioan"]
[Black "Apostu, Rares-Stefan"]
[Result "1-0"]
[ECO "C77"]
[WhiteElo "1704"]
[BlackElo "1331"]
[Annotator "NA RC COMBH"]
[PlyCount "73"]
[EventDate "2022.12.02"]
[EventType "rapid"]
[EventCountry "ROU"]
[SourceTitle "playchess.com"]
[Source "ChessBase"]
[SourceQuality "1"]
[TimeControl "600+5"]

1. e4 {[%emt 0:00:06]} e5 {[%emt 0:00:00]} 2. Nf3 {[%emt 0:00:03]} Nc6 {[%emt 0:00:01]} 3. Bb5 {[%emt 0:00:02]} a6 {[%emt 0:10:19]} 4. Ba4 {[%emt 0:00:03]} Nf6 {[%emt 0:00:00]} 5. d3 {[%emt 0:00:04]} b5 {[%emt 0:00:00]} 6. Bb3 {[%emt 0:00:02]} Be7 {[%emt 0:00:00]} 7. a4 {[%emt 0:00:06]} Bb7 {[%emt 0:00:00]} 8. c3 {[%emt 0:00:05]} O-O {[%emt 0:00:00]} 9. Qe2 {[%emt 0:00:03]} d5 {[%emt 0:00:00]} 10. exd5 {[%emt 0:00:15]} Nxd5 {[%emt 0:00:00]} 11. O-O {[%emt 0:00:19]} Nf4 {[%emt 0:00:00]} 12. Bxf4 {[%emt 0:00:08]} exf4 {[%emt 0:00:00]} 13. Bc2 {[%emt 0:00:15]} Qd5 {[%emt 0:00:00]} 14. d4 {[%emt 0:00:15]} b4 {[%emt 0:00:00]} 15. Nbd2 {[%emt 0:00:15]} bxc3 {[%emt 0:00:00]} 16. bxc3 {[%emt 0:00:03]} Rfe8 {[%emt 0:00:00]} 17. Rab1 {[%emt 0:00:21]} Rab8 {[%emt 0:00:00]} 18. Rfe1 {[%emt 0:00:17]} Qd7 {[%emt 0:00:00]} 19. Qd3 {[%emt 0:00:36]} g6 {[%emt 0:00:00]} 20. Nc4 {[%emt 0:00:15]} Qd5 {[%emt 0:00:00]} 21. Bb3 {[%emt 0:00:54]} Qh5 {[%emt 0:00:00]} 22. d5 {[%emt 0:01:05]} Rbd8 {[%emt 0:00:00]} 23. Nce5 {[%emt 0:00:34]} Nxe5 {[%emt 0:00:00]} 24. Rxe5 {[%emt 0:00:03]} Qh6 {[%emt 0:00:00]} 25. c4 {[%emt 0:00:17]} c6 {[%emt 0:00:00]} 26. Rbe1 {[%emt 0:00:09]} Qf8 {[%emt 0:00:00]} 27. d6 {[%emt 0:00:52]} Bf6 {[%emt 0:00:00]} 28. Rxe8 {[%emt 0:01:00]} Rxe8 {[%emt 0:00:00]} 29. c5 {[%emt 0:00:10]} Rxe1+ {[%emt 0:00:00]} 30. Nxe1 {[%emt 0:00:02]} Qe8 {[%emt 0:00:00]} 31. Nf3 {[%emt 0:00:07]} g5 {[%emt 0:00:00]} 32. h3 {[%emt 0:00:22]} h5 {[%emt 0:00:00]} 33. Qg6+ {[%emt 0:00:06]} Kf8 {[%emt 0:00:00]} 34. Qxf6 {[%emt 0:00:05]} Kg8 {[%emt 0:00:00]} 35. Nxg5 {[%emt 0:00:09]} Qe1+ {[%emt 0:00:00]} 36. Kh2 {[%emt 0:00:01]} Qe8 {[%emt 0:00:00]} 37. Bxf7+ {[%emt 0:00:05]} 1-0

[Event "Romanian Rapid Open 2022"]
[Site "Sebes"]
[Date "2022.12.02"]
[Round "7.39"]
[White "Buciuman, Aurel"]
[Black "Vasilca, Cornel"]
[Result "0-1"]
[ECO "A40"]
[WhiteElo "1369"]
[BlackElo "1520"]
[Annotator "NA RC COMBH"]
[PlyCount "56"]
[EventDate "2022.12.02"]
[EventType "rapid"]
[EventCountry "ROU"]
[SourceTitle "playchess.com"]
[Source "ChessBase"]
[SourceQuality "1"]
[TimeControl "600+5"]

1. e4 {[%emt 0:00:03]} e5 {[%emt 0:00:02]} 2. d4 {[%emt 0:00:03]} Nc6 {[%emt 0:00:03]} 3. d5 {[%emt 0:00:09]} Nce7 {[%emt 0:00:02]} 4. c4 {[%emt 0:00:10]} d6 {[%emt 0:00:02]} 5. Nc3 {[%emt 0:00:15]} Bd7 {[%emt 0:00:05]} 6. Nge2 {[%emt 0:00:20]} g6 {[%emt 0:00:02]} 7. Bg5 {[%emt 0:00:21]} f5 {[%emt 0:00:11]} 8. f4 {[%emt 0:00:30]} Bh6 {[%emt 0:00:44]} 9. Bxh6 {[%emt 0:00:25]} Nxh6 {[%emt 0:00:03]} 10. Qd2 {[%emt 0:00:20]} exf4 {[%emt 0:00:18]} 11. Nxf4 {[%emt 0:00:30]} Ng4 {[%emt 0:00:12]} 12. O-O-O {[%emt 0:01:19]} O-O {[%emt 0:00:20]} 13. h3 {[%emt 0:00:35]} Ne5 {[%emt 0:00:06]} 14. Be2 {[%emt 0:00:32]} fxe4 {[%emt 0:00:13]} 15. Nxe4 {[%emt 0:00:19]} Nf5 {[%emt 0:00:30]} 16. g4 {[%emt 0:00:28]} Ng7 {[%emt 0:00:04]} 17. Nd3 {[%emt 0:00:21]} Nxc4 {[%emt 0:00:22]} 18. Qc3 {[%emt 0:00:48]} Ne3 {[%emt 0:00:23]} 19. Nb4 {[%emt 0:01:02]} Nxd1 {[%emt 0:00:07]} 20. Bxd1 {[%emt 0:00:19]} a5 {[%emt 0:00:20]} 21. Nc2 {[%emt 0:00:20]} Rf4 {[%emt 0:01:04]} 22. Qe3 {[%emt 0:00:23]} Qf8 {[%emt 0:00:19]} 23. g5 {[%emt 0:00:14]} Re8 {[%emt 0:00:07]} 24. Nf6+ {[%emt 0:01:42]} Rxf6 {[%emt 0:00:05]} 25. gxf6 {[%emt 0:00:14]} Rxe3 {[%emt 0:00:09]} 26. fxg7 {[%emt 0:00:03]} Qf4 {[%emt 0:00:11]} 27. Nxe3 {[%emt 0:00:15]} Qxe3+ {[%emt 0:00:03]} 28. Kc2 {[%emt 0:00:01]} Qe4+ {[%emt 0:00:03]} 0-1

[Event "Romanian Rapid Open 2022"]
[Site "Sebes"]
[Date "2022.12.02"]
[Round "7.40"]
[White "Stan, Luciana-Gabriela"]
[Black "Burja-Udrea, Razvan-Andrei"]
[Result "1/2-1/2"]
[ECO "D37"]
[WhiteElo "1823"]
[BlackElo "1365"]
[Annotator "NA RC COMBH"]
[PlyCount "42"]
[EventDate "2022.12.02"]
[EventType "rapid"]
[EventCountry "ROU"]
[SourceTitle "playchess.com"]
[Source "ChessBase"]
[SourceQuality "1"]
[TimeControl "600+5"]

1. Nf3 {[%emt 0:00:01]} d5 {[%emt 0:00:07]} 2. d4 {[%emt 0:00:02]} e6 {[%emt 0:00:07]} 3. c4 {[%emt 0:00:02]} Nf6 {[%emt 0:00:13]} 4. Nc3 {[%emt 0:00:01]} Be7 {[%emt 0:00:05]} 5. Bf4 {[%emt 0:00:03]} b6 {[%emt 0:00:20]} 6. Rc1 {[%emt 0:00:02]} c5 {[%emt 0:00:25]} 7. e3 {[%emt 0:00:04]} Bb7 {[%emt 0:00:06]} 8. Be2 {[%emt 0:01:21]} Nbd7 {[%emt 0:01:17]} 9. O-O {[%emt 0:00:04]} O-O {[%emt 0:00:02]} 10. Ne5 {[%emt 0:00:12]} Rc8 {[%emt 0:00:13]} 11. Qa4 {[%emt 0:00:03]} a6 {[%emt 0:00:42]} 12. cxd5 {[%emt 0:00:29]} exd5 {[%emt 0:00:18]} 13. Rfd1 {[%emt 0:01:39]} b5 {[%emt 0:00:38]} 14. Qc2 {[%emt 0:00:13]} cxd4 {[%emt 0:00:04]} 15. Nxd7 {[%emt 0:00:40]} Qxd7 {[%emt 0:00:09]} 16. Rxd4 {[%emt 0:00:04]} b4 {[%emt 0:00:03]} 17. Qb3 {[%emt 0:00:57]} bxc3 {[%emt 0:00:05]} 18. bxc3 {[%emt 0:00:01]} Rfd8 {[%emt 0:00:39]} 19. Rb1 {[%emt 0:00:09]} Ba8 {[%emt 0:00:06]} 20. Bxa6 {[%emt 0:00:03]} Rc5 {[%emt 0:01:03]} 21. a4 {[%emt 0:00:04]} Ne4 {[%emt 0:00:12]} 1/2-1/2